Cogmind - Beta 17 @@@ ROGUE MODE // 2026.07.12 @ 16:53:05 Player: ExAliquo Result: Destroyed by Autobeam Turret with Autobeam Performance ------------- Evolutions (0) 0 Regions Visited (2) 400 Robots Destroyed (29) 145 Value Destroyed (613) 613 Prototype IDs (0) 0 Alien Tech Used (0) 0 Bonus (0) 0 TOTAL SCORE: 1158 Bonus ------- None Cogmind --------- Core Integrity 0/250 Matter 295/300 Energy 227/250 System Corruption 6% Temperature Cool (6) Movement Treading (240) Ox1 Location -10/Subcaves Parts ------- > --- POWER (1) -------- Ion Engine > --- PROPULSION (2) --- Light Treads Subdweller Monowheel > --- UTILITY (2) ------ Large Storage Unit Seismic Detector > --- WEAPON (2) ------- Subdweller Beam Cannon Battle Cannon > --- INVENTORY (15) --- Makeshift Power Source Aluminum Leg Makeshift Leg Medium Storage Unit High-capacity Matter Pod (200) High-capacity Matter Pod (200) Makeshift Light Armor Plating Makeshift Light Armor Plating Scrap Shield Battle Rifle Battle Rifle Battle Cannon Grenade Launcher Multitool Peak State ------------ > --- POWER ------------ Ion Engine > --- PROPULSION ------- Makeshift Leg Subdweller Monowheel > --- UTILITY ---------- Large Storage Unit Seismic Detector > --- WEAPON ----------- Subdweller Machine Gun Subdweller Machine Gun > --- INVENTORY -------- Makeshift Power Source Makeshift Power Source Light Treads Aluminum Leg Improved Heat Sink Medium Storage Unit High-capacity Matter Pod High-capacity Matter Pod Makeshift Light Armor Plating Beam Rifle Assault Rifle Assault Rifle Battle Cannon Grenade Launcher [Rating: 15] Favorites ----------- Power Ion Engine Engine Ion Engine Propulsion Aluminum Leg Treads Light Treads Leg Aluminum Leg Wheel Subdweller Monowheel Utility Seismic Detector Device Seismic Detector Storage Large Storage Unit Protection Makeshift Light Armor Plating Weapon Subdweller Machine Gun Energy Gun Small Laser Energy Cannon Subdweller Beam Cannon Ballistic Gun Subdweller Machine Gun Ballistic Cannon Battle Cannon Build | -11 -10 -10 ------- Run | Yrd Mat Sub Slots Evolved . | . . . Power . | . . . Propulsion . | . . . Utility . | . . . Weapon . | . . . Parts Attached 27 | 1 13 13 Power 2 | . 2 . Engine 2 | . 2 . Core . | . . . Reactor . | . . . Propulsion 8 | . 4 4 Treads 2 | . 2 . Leg 3 | . 2 1 Wheel 3 | . . 3 Hover . | . . . Flight . | . . . Utility 6 | 1 2 3 Device 3 | 1 . 2 Storage 2 | . 2 . Processor . | . . . Hackware . | . . . Protection 1 | . . 1 Artifact . | . . . Weapon 11 | . 5 6 Energy Gun 1 | . 1 . Energy Cannon 1 | . . 1 Ballistic Gun 7 | . 4 3 Ballistic Cannon 2 | . . 2 Launcher . | . . . Special Weapon . | . . . Impact Weapon . | . . . Slashing Weapon . | . . . Piercing Weapon . | . . . Special Melee Weapon . | . . . Unidentified Prototypes . | . . . Parts Lost 5 | . 2 3 Power 1 | . 1 . Propulsion 2 | . 1 1 Utility 1 | . . 1 Weapon 1 | . . 1 Highest Loss Streak 2 | . 1 2 To Critical Strikes . | . . . Average Backups 12 | 6 8 14 Power 1 | 1 1 1 Propulsion 2 | 4 2 2 Utility 4 | . 3 5 Weapon 3 | 1 1 4 Tool/Special . | . . . Unused Backups 30 | 6 6 18 Power 5 | 1 . 4 Propulsion 6 | 2 3 1 Utility 7 | 1 1 5 Weapon 11 | 2 2 7 Tool/Special 1 | . . 1 Average Slot Usage (%) 99 | . 99 99 Engine 13 | . 13 14 Treads 10 | . 3 14 Leg 13 | . 24 7 Wheel 3 | . . 5 Device 12 | . 14 12 Storage 14 | . 14 14 Protection 1 | . . 1 Ballistic Gun 23 | . 25 22 Ballistic Cannon 2 | . . 4 Peak Build Rating 15 | 7 8 15 Average Rating 10 | 6 7 12 On Entrance 7 | 6 7 8 Avg Prop Armor Cover (%) 11 | . . 11 Naked Turns . | . . . Heaviest Build 37 | 13 30 37 Greatest Support 40 | 20 40 40 Greatest Overweight (x) 1 | . . 1 Average Overweight (x) . | . . . Largest Inventory Capacity 15 | 8 15 15 Average Capacity 12 | 8 9 15 Most Carried 15 | 6 15 15 Average Carried 12 | 6 8 14 Final Capacity 15 | 8 15 15 Final Carried 15 | 6 15 15 Class Distribution -------------------- 67% | Mutant 32% | Scavenger-Mutant Dominant Class ---------------- Mutant | -10/Materials Mutant | -10/Subcaves Resources | -11 -10 -10 ----------- Run | Yrd Mat Sub Matter Collected 1515 | 239 500 776 Remotely . | . . . Salvage Created 902 | 56 537 309 Parts 66 | 8 36 22 Haulers Intercepted 2 | . 2 . Recyclers Shooed . | . . . Parts Field Recycled . | . . . Retrieved Matter . | . . . Parts Self-Destructed 20 | . . 20 Prevented . | . . . Parts Restored . | . . . Kills | -11 -10 -10 ------- Run | Yrd Mat Sub Combat Hostiles Destroyed 21 | . 12 9 Guns 20 | . 12 8 Cannons 1 | . . 1 Classes Destroyed 10 | 1 6 3 Worker 1 | . 1 . Tunneler 3 | 3 . . Hauler 2 | . 2 . Recycler 1 | . 1 . Watcher 1 | . 1 . Swarmer 9 | . 6 3 Grunt 6 | . 6 . Sentry 1 | . . 1 Cobbler 1 | . . 1 Subdweller 5 | . . 5 Best Kill Streak 3 | 1 3 3 Combat Bots Only 3 | . 3 3 Max Kills in Single Turn 1 | 1 1 1 Gunslinging . | . . . Exploded . | . . . Melee . | . . . Uniques/NPCs Destroyed . | . . . Combat | -11 -10 -10 -------- Run | Yrd Mat Sub Hostile Shots Fired 147 | . 78 69 Missed 47 | . 19 28 Hits 100 | . 59 41 Projectile 100 | . 59 41 Critical Strikes 5 | . 3 2 Damage Taken 1464 | . 717 747 Core 252 | . 137 115 Absorbed by Shields . | . . . Core Remaining (%) 100 | 100 . . Volleys Fired 134 | 17 71 46 Largest 2 | 2 2 2 Hottest 113 | 40 60 113 Shots Fired 264 | 34 141 89 Gun 255 | 34 141 80 Cannon 9 | . . 9 Launcher . | . . . Special . | . . . Kinetic 246 | 34 124 88 Thermal 18 | . 17 1 Explosive . | . . . Electromagnetic . | . . . Robot Hit Streak 15 | 5 14 15 Robot Miss Streak 4 | 2 4 2 Penetration Max . | . . . Secondary Targets . | . . . Shots Hit Robots 173 | 21 93 59 Core Hits 58 | 7 34 17 Critical Kills . | . . . Critical Parts Destroyed . | . . . Critical Strikes . | . . . Melee Attacks . | . . . Impact . | . . . Slashing . | . . . Piercing . | . . . Sneak Attacks . | . . . Combat Hostiles . | . . . Follow-up Attacks . | . . . Damage Inflicted 2133 | 189 883 1061 Guns 2041 | 189 881 971 Cannons 90 | . . 90 Explosions . | . . . Melee . | . . . Ramming 2 | . 2 . Kinetic 1974 | 189 724 1061 Thermal 157 | . 157 . Explosive . | . . . Electromagnetic . | . . . Impact . | . . . Slashing . | . . . Piercing . | . . . Highest Corruption 6 | . 6 6 Average Corruption 5 | . 5 6 Corruption Purged . | . . . Corruption Blocked . | . . . Effects 94 | . 31 63 Message Errors 23 | . 4 19 Matter Fused 22 | . 10 12 Heat Flow Errors 12 | . 3 9 Energy Discharges 13 | . 7 6 Parts Rejected 3 | . 2 1 Parts Fused 1 | . . 1 Data Loss (minor) 8 | . 2 6 Data Loss (major) 6 | . 2 4 Misfires 3 | . . 3 Alerts 1 | . . 1 Weapon Failures 2 | . 1 1 Overload Shots . | . . . Overflow Damage . | . . . Projectiles . | . . . Explosions . | . . . Melee . | . . . Knockbacks . | . . . Impact . | . . . Kinetic . | . . . Secondary . | . . . Self-Inflicted Damage . | . . . Shots . | . . . Rammed . | . . . Targets Rammed 1 | . 1 . Kicked 1 | . 1 . Crushed . | . . . Highest Temperature 207 | . 186 207 Average Temperature 51 | . 40 86 Received Heat Transfer 588 | . 390 198 Siege Activations . | . . . Martial Activations . | . . . Shielding Activations . | . . . Robots Disrupted . | . . . Combat Hostiles . | . . . Robots Corrupted . | . . . Combat Hostiles . | . . . Parts Fried . | . . . Impact Corruptions . | . . . Robots Melted . | . . . Combat Hostiles . | . . . Parts Melted . | . . . Heat Transferred 350 | . 350 . Parts Sabotaged . | . . . Parts Stolen . | . . . Parts Stripped . | . . . Power Chain Reactions . | . . . Alert | -11 -10 -10 ------- Run | Yrd Mat Sub Maximum Alert Level . | . . . Low Security (%) 100 | 100 100 . Level 1 . | . . . Level 2 . | . . . Level 3 . | . . . Level 4 . | . . . Level 5 . | . . . High Security . | . . . Max Security . | . . . Peak Influence 71 | 5 71 . Initial . | . . . Average 14 | . 15 . Influence Increases 503 | 15 363 125 Destroy 0b10 Robot/C 320 | . 240 80 Destroy 0b10 Robot/NC 40 | 15 25 . Destroy Leader 56 | . 56 . Successful Hack 11 | . 11 . Destroy Structure 1 | . 1 . Lose Combat Pursuer 75 | . 30 45 Influence Decreases 488 | 15 304 169 Entered New Map 29 | . . 29 Time Decay 439 | 15 284 140 Lost Part 20 | . 20 . Squads Dispatched 2 | . 2 . Investigation 1 | . 1 . Extermination . | . . . Reinforcement 1 | . 1 . Assault . | . . . Garrison . | . . . Intercept . | . . . Searches Triggered . | . . . Construction Impeded . | . . . Haulers Reinforced . | . . . Active Scanning Responses . | . . . Cargo Convoy Interrupts . | . . . Stealth | -11 -10 -10 --------- Run | Yrd Mat Sub Distress Signals 2 | . 2 . Communications Jammed . | . . . Distress Signals . | . . . Times Spotted 36 | . 23 13 Peak Tracking Total 6 | . 4 6 Tactical Retreats 3 | . 1 2 Traps | -11 -10 -10 ------- Run | Yrd Mat Sub Traps Triggered 3 | . 3 . Indirectly . | . . . Trap Hack Attempts . | . . . Triggered . | . . . Disarmed . | . . . Reprogrammed . | . . . Reused . | . . . Traps Extracted . | . . . Installed . | . . . Triggered . | . . . Machines | -11 -10 -10 ---------- Run | Yrd Mat Sub Machines Disabled . | . . . Max in Single Turn . | . . . Machines Repaired . | . . . Machines Dismantled . | . . . Machines Sabotaged . | . . . Overloaded Fab Kills . | . . . Hacking | -11 -10 -10 --------- Run | Yrd Mat Sub Machines Accessed 8 | . 8 . Terminals 7 | . 7 . Fabricators . | . . . Repair Stations . | . . . Recycling Units 1 | . 1 . Scanalyzers . | . . . Garrison Access . | . . . Total Hacks 26 | . 26 . Successful 9 | . 9 . Failed 17 | . 17 . Catastrophic 2 | . 2 . Database Lockouts . | . . . Manual 8 | . 8 . Terminals 21 | . 21 . Fabricators . | . . . Repair Stations . | . . . Recycling Units 5 | . 5 . Scanalyzers . | . . . Garrison Access . | . . . Terminal Hacks 5 | . 5 . Alert Level 2 | . 2 . Locate Traps 1 | . 1 . Transport Status 1 | . 1 . Zone Layout 1 | . 1 . Fabricator Hacks . | . . . Repair Station Hacks . | . . . Recycling Unit Hacks 2 | . 2 . Retrieve Components 2 | . 2 . Scanalyzer . | . . . Garrison Access Hacks . | . . . Unauthorized Hacks 2 | . 2 . Terminals 2 | . 2 . Botnet 2 | . 2 . Fabricators . | . . . Repair Stations . | . . . Recycling Units . | . . . Scanalyzers . | . . . Garrison Access . | . . . Data Cores Recovered . | . . . Used . | . . . Hacking Detections 8 | . 8 . Full Trace Events 1 | . 1 . Feedback Events . | . . . Feedback Blocked . | . . . Robot Schematics Acquired . | . . . Robots Built . | . . . Authchips . | . . . Time . | . . . Total Robot Build Rating . | . . . Part Schematics Acquired . | . . . Parts Built . | . . . Authchips . | . . . Time . | . . . Total Part Build Rating . | . . . Part Studies Acquired . | . . . Parts Repaired . | . . . Time . | . . . Parts Recycled . | . . . Recycled Matter . | . . . Retrieved Matter . | . . . Retrieved Components 9 | . 9 . Parts Scanalyzed . | . . . Part Schematics Acquired . | . . . Parts Damaged . | . . . Bothacking | -11 -10 -10 ------------ Run | Yrd Mat Sub Used RIF Installer . | . . . Robots Hacked . | . . . Non-combat . | . . . Combat . | . . . Robot Hacks Applied . | . . . Relay Couplers Released . | . . . Fabnet Peak Effective % . | . . . Robots Rewired . | . . . Allies Hacked . | . . . Hacks Repelled . | . . . Allies | -11 -10 -10 -------- Run | Yrd Mat Sub Total Allies . | . . . Largest Group . | . . . Highest-Rated Group . | . . . Highest-Rated Ally . | . . . Total Orders . | . . . Ally Attacks . | . . . Total Damage . | . . . Kills . | . . . Allies Corrupted . | . . . Allies Melted . | . . . Intel | -11 -10 -10 ------- Run | Yrd Mat Sub Active Infowar (turns) 3038 | 8 1108 1922 Optics 1 | . . 1 Terrain 326 | . . 326 Seismic 2711 | 8 1108 1595 Robot Analysis Total . | . . . Derelict Logs Recovered . | . . . Drone Launches . | . . . Drone Recoveries . | . . . Exploration | -11 -10 -10 ------------- Run | Yrd Mat Sub Turns Passed 3396 | 126 1108 2162 Spaces Moved 2004 | 65 656 1283 Core . | . . . Treads 408 | . 69 339 Legs 920 | 65 587 268 Wheels 676 | . . 676 Hover . | . . . Flight . | . . . Fastest Speed 120 | 120 120 120 Average Speed 138 | 120 124 147 Slowest Speed 200 | 120 160 200 Overloaded Moves . | . . . Propulsion Burnouts . | . . . Robots Hopped . | . . . Potential Cave-ins . | . . . Cave-ins Triggered . | . . . Exploration Rate (%) 56 | 4 89 75 Regions Visited 2 Branch Regions 1 Pre-discovered Areas . | . . . Known Exits Taken . | . . . Unknown Exits Taken 2 | 1 1 . Scrap Searched 12 | . . 12 Spaces Dug . | . . . Terrain Destroyed . | . . . Melee . | . . . Projectile . | . . . AOE . | . . . Terrain Rammed . | . . . Walls Destroyed . | . . . Machines Disabled . | . . . Actions | -11 -10 -10 --------- Run | Yrd Mat Sub Total 2396 | 85 834 1477 Wait 151 | 3 61 87 Move 2002 | 64 655 1283 Hop . | . . . Pick Up 33 | . 17 16 Fast Attach 12 | 1 6 5 Attach 6 | . 1 5 Detach 1 | . . 1 Swap 19 | . 7 12 Drop 37 | . 15 22 Fire 134 | 17 71 46 Melee . | . . . Ram . | . . . Kick 1 | . 1 . Crush . | . . . Escape Stasis . | . . . Rewire . | . . . Trap . | . . . Miscellaneous . | . . . Route ------- -11/Scrapyard -10/Materials (discovered 5 exits: [*Mat x2] / [*Min x2] / [*Sub]) -10/Subcaves (discovered 3 exits: [*Mat x2] / [*Rec]) History --------- Turn | Location | Event 1 | -11/Scrapyard | Discovered new exit (range 3) 127 | -11/Scrapyard | Entered Materials 251 | -10/Materials | Discovered new exit (range 16) 311 | -10/Materials | Build established: Mutant 648 | -10/Materials | Core integrity fell below 50% 671 | -10/Materials | Discovered new exit (range 14) 948 | -10/Materials | Discovered new exit (range 13) 1013 | -10/Materials | Discovered new exit (range 7) 1088 | -10/Materials | Discovered new exit (range 15) 1235 | -10/Materials | Entered Subcaves 1364 | -10/Subcaves | Disturbed a concealed Subdweller 1869 | -10/Subcaves | Core integrity fell below 20% 2182 | -10/Subcaves | Build established: Scavenger-Mutant 2291 | -10/Subcaves | Discovered new exit (range 14) 2866 | -10/Subcaves | Discovered new exit (range 13) 2957 | -10/Subcaves | Disturbed a concealed Subdweller 3017 | -10/Subcaves | Discovered new exit (range 9) 3261 | -10/Subcaves | Build established: Mutant 3319 | -10/Subcaves | A swath of the cavern ceiling suddenly collapsed 3397 | -10/Subcaves | Destroyed by Autobeam Turret with Autobeam Last Messages --------------- 03230_ Found 56 Matter. 03232_ Searching scrap... 03232_ Found Battle Rifle. 03232_ Found 54 Matter. 03234_ System corrupted: Energy discharge (-90). 03235_ Subatomizers dissect the Assault Rifle. 03239_ Dropped Imp. Heat Sink. 03240_ Dropped Assault Rifle. 03240_ Acquired Scrap Shield. 03253_ 9T-JLG(u) builds Twisted Machinery. 03269_ Subatomizers dissect the Assault Rifle. 03281_ System corrupted: Matter fused (-9). 03281_ Acquired 9 matter. 03294_ Dropped Sub. Monowheel. 03295_ Acquired Multitool. 03296_ Acquired 10 matter. 03314_ System corrupted: Heat flow error (+244). A swath of the cavern ceiling suddenly collapses. 03365_ S/VNKJBKBE5=:55FRAX4,J3XANF 03382_ System corrupted: Substantial component data lost. Map ----- +----------------------------------------------------+ | #?????????????????????????????????# #?? | | #????????????????????????????????## "#?? | | #????????????????????????????????# ####? | | #????????????????????????????????# "#"#? | | ##????????????????????????????????# "#"##? | | ##?????????????????????????????????###""""## | | # #????????????????????????????????????##"""#" | | ## ##?????????????????????????????????????##"""# | | ?#####???????????????????????????????????????#"#"" | | ??????##???????????????#????????????????????##""#" | | ????## ##????????????#?<###???????????????###"#"## | | ??### #??????????"?"" """"??????????????# "#"## | | ??# #??????????" " " "??????????????# "#""" | | ??# #???????????" t "?????????????## ##"" | | ??# #???????????? ?????????????## """ | | #?# ##??????????? ???????????### " | | ### ##??????????? ???###?###### # | | #???????????# #??## ### ## # | | #???????????# #?## | | ## #???????????# #?# | | #### #???????????# #?# # ### ## | | ##### #????#####??# #### ###### ## ## | | ##??# #???## ####% %# #?## ## | | #???###??## ##?# # | | ##?????### #?# ### | | ##???## @ ## #??# | | ##### #### ## ## #?? | | ## ##### #######??########## #?? | | ?# #???# #?????????????????#####?? | | ?# #??# #??????????????????????? | | ?# ## ## ##?# ##??????????????????????? | | ?## #############??## ##???????????????????????? | | ??###???????????????#####????????????????????????? | | ?????????????????????????????????????????????????? | | ?????????????????????????????????????????????????? | | ?????????????????????????????????????????????????? | | ?????????????????????????????????????????????????? | | ?????????????????????????????????????????????????? | | ?????????????????????????????????????????????????? | | ?????????????????????????????????????????????????? | | ?????????????????????????????????????????????????? | | ?????????????????????????????????????????????????? | | ?????????????????????????????????????????????????? | | ?????????????????????????????????????????????????? | | ?????????????????????????????????????????????????? | | ?????????????????????????????????????????????????? | | ?????????????????????????????????????????????????? | | | | | | | +----------------------------------------------------+ Best States ------------- Heat Dissipation 25 Energy Generation 10 Energy Capacity 250 Matter Stores 300 Matter Capacity 300 Sight Range 16 Terrain Scan Range 14 Terrain Scan Density 10 Armor Coverage 100 Evasion (%) 55 Recoil Reduction 2 Item Schematics ----------------- None Robot Schematics ------------------ None Fabricated ------------ Nothing Repaired ---------- Nothing Studied --------- None Alien Tech Used ----------------- None Achievements -------------- None Challenges ------------ None Game ------ Seed SeismicFusionTransmogrifier Manual? 0 Play Time 00:27:34 Cumulative 53.7 hours Start 2026.07.12 @ 16:27:53 End 2026.07.12 @ 16:53:05 Sessions 1 Manual Loads 0 Difficulty Rogue Special Mode None Game No. 98 Rogue 98 Adventurer 0 Explorer 0 Win Type - Total 1 Types 1/0/0/0/0/0/0/0/0/0 Lore% 41 Gallery% 47 Achievement% 43 Wizard Run 0 Options --------- Layout 0 ASCII 0 Keyboard 0 Movement Numpad Keybinds 0 Fullscreen 1 Font 18/SmallcapsGlow Map View 76x50 Zoom Use 0% Tactical HUD 1 Map Filters NONE Filters NONE Steam X RUN: 64531920-7040-4c43-ae0d-8dd0b25c4eb5